fUST/lending_fUST_20240630
["ID","MTS","AMOUNT","RATE_DAILY","PERIOD"]
[330680902,1719706242654,-500.0,0.00016495,2]
[330680914,1719706242739,-500.0,0.00016495,2]
[330680916,1719706242758,-500.0,0.00016495,2]
[330680918,1719706242769,-500.0,0.00016495,2]
[330680920,1719706242779,-669.96,0.00016495,2]
[330680921,1719706242788,-500.0,0.00016495,2]
[330680923,1719706242797,-754.24,0.00016495,2]
[330680925,1719706242806,-500.0,0.00016495,2]
[330680927,1719706242815,-500.0,0.00016495,2]
[330680929,1719706242824,-500.0,0.00016495,2]
[330680931,1719706242833,-500.0,0.00016495,2]
[330680933,1719706242842,-500.0,0.00016495,2]
[330680935,1719706242851,-962.64,0.00016495,2]
[330680937,1719706242862,-500.0,0.00016495,2]
[330680939,1719706242873,-500.0,0.00016495,2]
[330680941,1719706242882,-605.48974468,0.00016495,2]
[330680943,1719706242891,-272.82419331,0.00016495,2]
[330680945,1719706242900,-500.0,0.00016495,2]
[330680947,1719706242909,-257.07669124,0.00016495,2]
[330680949,1719706242918,-1646.63,0.00016495,2]
[330680951,1719706242928,-19083.97,0.00016495,2]
[330680954,1719706242939,-500.0,0.00016495,2]
[330680957,1719706242948,-786.98,0.00016495,2]
[330680959,1719706242957,-500.0,0.00016495,2]
[330680961,1719706242966,-500.0,0.00016495,2]
[330680963,1719706242975,-628.64,0.00016495,2]
[330680965,1719706242984,-500.0,0.00016495,2]
[330680967,1719706242994,-491.67118588,0.00016495,2]
[330680969,1719706243004,-899.91,0.00016495,2]
[330680971,1719706243014,-1487.78,0.00016495,2]
[330680973,1719706243024,-500.0,0.00016496,2]
[330680975,1719706243033,-500.0,0.00016496,2]
[330680976,1719706243042,-500.0,0.00016496,2]
[330680979,1719706243051,-500.0,0.00016496,2]
[330680981,1719706243060,-500.0,0.00016496,2]
[330680983,1719706243070,-500.0,0.00016496,2]
[330680985,1719706243080,-500.0,0.00016496,2]
[330680986,1719706243090,-508.08559448,0.00016496,2]
[330680989,1719706243099,-500.0,0.00016496,2]
[330680991,1719706243108,-500.0,0.00016496,2]
[330680993,1719706243118,-151.0,0.00016496,2]
[330680995,1719706243127,-500.0,0.00016496,2]
[330680996,1719706243135,-3476.85,0.00016496,2]
[330680998,1719706243146,-500.0,0.00016496,2]
[330681000,1719706243155,-500.0,0.00016496,2]
[330681002,1719706243164,-503.5916084,0.00016496,2]
[330681005,1719706243174,-1938.01,0.00016496,2]
[330681007,1719706243184,-500.0,0.00016496,2]
[330681009,1719706243194,-500.0,0.00016496,2]
[330681011,1719706243203,-500.0,0.00016496,2]
[330681012,1719706243212,-500.0,0.00016496,2]
[330681014,1719706243221,-500.0,0.00016496,2]
[330681016,1719706243230,-280.83590196,0.00016496,2]
[330681018,1719706243239,-1371.07,0.00016496,2]
[330681020,1719706243248,-500.0,0.00016496,2]
[330681023,1719706243258,-513.46,0.00016496,2]
[330681025,1719706243267,-500.0,0.00016496,2]
[330681027,1719706243277,-632.5737695,0.00016496,2]
[330681029,1719706243286,-963.11,0.00016496,2]
[330681031,1719706243295,-500.0,0.00016496,2]
[330681033,1719706243304,-500.0,0.00016496,2]
[330681035,1719706243313,-2508.91,0.00016496,2]
[330681037,1719706243322,-2963.02,0.00016496,2]
[330681039,1719706243331,-568.34,0.00016496,2]
[330681041,1719706243341,-623.23240016,0.00016496,2]
[330681043,1719706243350,-500.0,0.00016496,2]
[330681045,1719706243359,-662.41,0.00016496,2]
[330681047,1719706243368,-500.0,0.00016496,2]
[330681049,1719706243377,-500.0,0.00016497,2]
[330681051,1719706243386,-500.0,0.00016497,2]
[330681053,1719706243395,-500.0,0.00016497,2]
[330681055,1719706243404,-5000.00000005,0.000165,2]
[330681057,1719706243413,-151.0,0.000165,2]
[330681058,1719706243422,-500.0,0.00016592,2]
[330681059,1719706243431,-500.0,0.00016592,2]
[330681060,1719706243440,-500.0,0.00016592,2]
[330681061,1719706243449,-500.0,0.00016592,2]
[330681062,1719706243458,-500.0,0.00016593,2]
[330681063,1719706243467,-500.0,0.00016593,2]
[330681064,1719706243476,-500.0,0.00016593,2]
[330681065,1719706243485,-568.06,0.00016593,2]
[330681066,1719706243494,-500.0,0.00016593,2]
[330681067,1719706243503,-500.0,0.00016593,2]
[330681068,1719706243512,-500.0,0.00016593,2]
[330681069,1719706243521,-578.73,0.00016593,2]
[330681070,1719706243531,-500.0,0.00016594,2]
[330681071,1719706243540,-500.0,0.00016594,2]
[330681072,1719706243549,-500.0,0.00016594,2]
[330681073,1719706243558,-599.79,0.00016594,2]
[330681074,1719706243567,-1074.38,0.00016594,2]
[330681075,1719706243577,-500.0,0.00016594,2]
[330681076,1719706243586,-2085.74,0.00016594,2]
[330681077,1719706243595,-832.07,0.00016594,2]
[330681078,1719706243605,-877.66,0.00016594,2]
[330681079,1719706243614,-2593.31,0.00016594,2]
[330681080,1719706243623,-500.0,0.00016594,2]
[330681081,1719706243633,-500.0,0.00016594,2]
[330681082,1719706243642,-601.04,0.00016594,2]
[330681084,1719706243651,-1456.72,0.00016594,2]
[330681085,1719706243660,-500.0,0.00016594,2]
[330681086,1719706243669,-500.0,0.00016594,2]
[330681087,1719706243678,-474.59798759,0.00016594,2]
[330681088,1719706243691,-1887.21,0.00016594,2]
[330681089,1719706243699,-500.0,0.00016594,2]
[330681090,1719706243709,-26653.1,0.00016594,2]
[330681091,1719706243718,-1499.87,0.00016594,2]
[330681092,1719706243727,-814.16,0.00016594,2]
[330681093,1719706243736,-2534.1,0.00016594,2]
[330681094,1719706243745,-1165.75,0.00016594,2]
[330681095,1719706243755,-676.3,0.00016594,2]
[330681096,1719706243766,-835.38,0.00016594,2]
[330681097,1719706243774,-610.22,0.00016594,2]
[330681098,1719706243783,-843.19,0.00016595,2]
[330681099,1719706243792,-777.03,0.00016595,2]
[330681100,1719706243801,-500.0,0.00016595,2]
[330681101,1719706243810,-500.0,0.00016596,2]
[330681102,1719706243819,-500.0,0.00016596,2]
[330681103,1719706243828,-500.0,0.00016596,2]
[330681104,1719706243837,-644.95,0.00016596,2]
[330681105,1719706243845,-864.11,0.00016596,2]
[330681106,1719706243854,-1938.82,0.00016596,2]
[330681107,1719706243863,-3167.37,0.00016596,2]
[330681108,1719706243871,-11624.93,0.00016596,2]
[330681109,1719706243881,-2503.72,0.00016596,2]
[330681110,1719706243890,-500.0,0.00016596,2]
[330681111,1719706243899,-1919.79,0.00016596,2]
[330681112,1719706243907,-2033.09,0.00016596,2]
[330681113,1719706243916,-500.0,0.000166,2]
[330681114,1719706243925,-500.0,0.000166,2]
[330681115,1719706243934,-22695.64,0.00016601,2]
[330681116,1719706243942,-773.0,0.0001685,2]
[330681117,1719706243951,-600.0,0.00016998,2]
[330681118,1719706243960,-153.0,0.00017014,2]
[330681119,1719706243970,-7354.38,0.0001704,2]
[330681120,1719706243980,-500.0,0.0001704,2]
[330681121,1719706243988,-129.589689,0.0001704,2]
[330681157,1719706244351,-2030.990311,0.0001704,2]
[330681158,1719706244360,-602.21995596,0.0001704,2]
[330681160,1719706244371,-2300.85765495,0.0001704,2]
[330681186,1719706244693,-2813.29238909,0.0001704,2]
[330681187,1719706244702,-400.87307958,0.0001704,2]
[330681188,1719706244715,-210.96692042,0.0001704,2]
[330681189,1719706244724,-23456.2146791,0.00017041,2]
[330681226,1719706460560,2132.12125025,0.00014999,2]
[330681228,1719706496319,5001.0,0.00026,120]
[330681234,1719706660811,-304.970342,0.0001543,2]
[330681235,1719706660836,-5573.259922,0.00015494,2]
[330681236,1719706660856,-490.22115977,0.00015995,2]
[330681237,1719706660877,-1107.61921369,0.00016391,2]
[330681238,1719706660899,-181.36774354,0.00016393,2]
[330681239,1719706660922,-300.0,0.00016437,2]
[330681240,1719706660943,-500.0,0.00016438,2]
[330681241,1719706660963,-658.34,0.00016438,2]
[330681242,1719706660982,-500.0,0.00016438,2]
[330681243,1719706661004,-500.0,0.00016438,2]
[330681244,1719706661025,-500.0,0.00016438,2]
[330681245,1719706661045,-741.16,0.00016438,2]
[330681246,1719706661066,-3044.08,0.00016438,2]
[330681247,1719706661087,-593.5,0.00016438,2]
[330681248,1719706661107,-916.23,0.00016438,2]
[330681249,1719706661128,-500.0,0.00016438,2]
[330681250,1719706661148,-3561.36,0.00016438,2]
[330681251,1719706661169,-710.12,0.00016438,2]
[330681252,1719706661188,-595.46,0.00016438,2]
[330681253,1719706661207,-665.06,0.00016438,2]
[330681254,1719706661226,-3087.19,0.00016438,2]
[330681255,1719706661247,-3746.04,0.00016438,2]
[330681256,1719706661267,-807.31,0.00016438,2]
[330681257,1719706661288,-7047.94,0.0001649,2]
[330681258,1719706661310,-500.0,0.0001649,2]
[330681259,1719706661332,-1985.93,0.0001649,2]
[330681260,1719706661353,-4909.341619,0.00016491,2]
[330681261,1719706719157,170.0,0.0001401,2]
[330681274,1719707214154,524.60290255,0.00014999,2]
[330681277,1719707282325,565.7116958,0.00014999,2]
[330681317,1719707431726,-553.4887,0.00015376,2]
[330681320,1719707431745,-148.2022202,0.00015376,2]
[330681322,1719707431754,-168.03253681,0.00015464,2]
[330681878,1719707437724,-1714.17435739,0.00015464,2]
[330681880,1719707437736,-620.00007354,0.00016254,2]
[330681882,1719707437746,-181.36774352,0.0001639,2]
[330681884,1719707437755,-181.36774352,0.00016395,2]
[330681886,1719707437765,-151.0,0.000164,2]
[330681888,1719707437774,-300.0,0.00016437,2]
[330681890,1719707437784,-643.65,0.00016438,2]
[330681892,1719707437794,-683.69,0.00016438,2]
[330681894,1719707437804,-549.89,0.00016438,2]
[330681896,1719707437813,-500.0,0.00016438,2]
[330681898,1719707437822,-500.0,0.00016438,2]
[330681899,1719707437832,-500.0,0.00016438,2]
[330681901,1719707437842,-2328.24,0.00016438,2]
[330681903,1719707437851,-500.0,0.00016438,2]
[330681905,1719707437860,-1004.6,0.00016438,2]
[330681907,1719707437870,-1298.38,0.00016438,2]
[330681909,1719707437880,-1022.53,0.00016438,2]
[330681911,1719707437890,-500.0,0.00016438,2]
[330681913,1719707437899,-523.71,0.00016438,2]
[330681915,1719707437910,-1225.07,0.00016438,2]
[330681917,1719707437920,-512.8583965,0.00016438,2]
[330681919,1719707437929,-500.0,0.00016438,2]
[330681921,1719707437939,-154.63581439,0.00016438,2]
[330681923,1719707437949,-2062.73,0.00016438,2]
[330681925,1719707437958,-1323.63,0.00016438,2]
[330681927,1719707437968,-427.4534004,0.00016438,2]
[330681929,1719707437978,-2484.02,0.00016438,2]
[330681931,1719707437987,-1522.32,0.00016438,2]
[330681933,1719707437997,-500.0,0.00016438,2]
[330681935,1719707438007,-886.43,0.00016438,2]
[330681937,1719707438017,-2729.96,0.00016438,2]
[330681939,1719707438027,-633.21,0.00016438,2]
[330681941,1719707438037,-246.64130882,0.00016438,2]
[330681943,1719707438047,-500.0,0.00016438,2]
[330681945,1719707438056,-500.0,0.00016438,2]
[330681947,1719707438066,-500.0,0.00016438,2]
[330681949,1719707438079,-500.0,0.00016438,2]
[330681951,1719707438098,-1443.69,0.00016438,2]
[330681953,1719707438119,-530.82,0.00016438,2]
[330681955,1719707438133,-1444.56,0.00016438,2]
[330681957,1719707438143,-1199.72,0.00016438,2]
[330681959,1719707438152,-500.0,0.00016438,2]
[330681961,1719707438163,-43478.92,0.00016438,2]
[330681963,1719707438173,-2024.83,0.00016438,2]
[330681965,1719707438182,-9111.07,0.00016438,2]
[330681967,1719707438192,-6754.28,0.00016438,2]
[330681969,1719707438201,-3493.38,0.00016438,2]
[330681971,1719707438211,-19083.97,0.00016438,2]
[330681973,1719707438220,-786.98,0.00016438,2]
[330681975,1719707438231,-500.0,0.00016438,2]
[330681977,1719707438246,-1903.18,0.00016438,2]
[330681979,1719707438256,-1437.83,0.00016438,2]
[330681981,1719707438265,-628.64,0.00016438,2]
[330681984,1719707438278,-5035.45,0.00016438,2]
[330681986,1719707438288,-548.34,0.00016438,2]
[330681988,1719707438298,-500.0,0.00016438,2]
[330681990,1719707438308,-722.86,0.00016438,2]
[330681992,1719707438318,-9137.66,0.00016438,2]
[330681994,1719707438327,-560.85,0.00016438,2]
[330681996,1719707438336,-15224.13,0.00016438,2]
[330681998,1719707438346,-500.0,0.00016438,2]
[330682000,1719707438355,-1487.78,0.00016438,2]
[330682002,1719707438365,-1170.68,0.00016438,2]
[330682004,1719707438374,-8082.84,0.00016438,2]
[330682005,1719707438383,-11929.32,0.00016489,2]
[330682008,1719707438393,-3583.1,0.00016489,2]
[330682009,1719707438403,-55803.14987739,0.0001649,7]
[330682011,1719707438414,-630.91,0.0001649,2]
[330682013,1719707438423,-2917.25,0.0001649,2]
[330682015,1719707438432,-878.05,0.0001649,2]
[330682017,1719707438441,-500.0,0.0001649,2]
[330682019,1719707438450,-500.0,0.0001649,2]
[330682021,1719707438459,-710.28,0.0001649,2]
[330682023,1719707438469,-568.77,0.0001649,2]
[330682025,1719707438479,-500.0,0.0001649,2]
[330682027,1719707438489,-3412.97,0.0001649,2]
[330682029,1719707438498,-680.53,0.0001649,2]
[330682031,1719707438508,-570.65,0.0001649,2]
[330682033,1719707438518,-637.35,0.0001649,2]
[330682035,1719707438527,-2958.56,0.0001649,2]
[330682037,1719707438536,-3589.95,0.0001649,2]
[330682039,1719707438546,-500.0,0.0001649,2]
[330682041,1719707438555,-773.68,0.0001649,2]
[330682043,1719707438564,-4138.07,0.0001649,2]
[330682045,1719707438573,-835.13,0.0001649,2]
[330682047,1719707438583,-705.15,0.0001649,2]
[330682048,1719707438592,-3069.42,0.0001649,2]
[330682049,1719707438603,-500.0,0.0001649,2]
[330682050,1719707438613,-943.07,0.0001649,2]
[330682051,1719707438623,-11204.33,0.0001649,2]
[330682052,1719707438632,-500.0,0.0001649,2]
[330682053,1719707438642,-1173.45,0.0001649,2]
[330682054,1719707438651,-500.0,0.0001649,2]
[330682056,1719707438661,-1866.92,0.0001649,2]
[330682058,1719707438671,-962.22,0.0001649,2]
[330682060,1719707438680,-500.0,0.0001649,2]
[330682062,1719707438690,-1202.05,0.0001649,2]
[330682064,1719707438700,-971.91,0.0001649,2]
[330682066,1719707438709,-1295.61,0.0001649,2]
[330682068,1719707438719,-1007.56,0.0001649,2]
[330682070,1719707438729,-500.0,0.0001649,2]
[330682072,1719707438738,-500.0,0.0001649,2]
[330682074,1719707438748,-868.81,0.0001649,2]
[330682076,1719707438758,-1818.93,0.0001649,2]
[330682078,1719707438767,-847.21,0.0001649,2]
[330682080,1719707438777,-500.0,0.0001649,2]
[330682082,1719707438786,-574.09,0.0001649,2]
[330682084,1719707438796,-500.0,0.0001649,2]
[330682086,1719707438806,-1722.11,0.0001649,2]
[330682088,1719707438815,-500.0,0.0001649,2]
[330682090,1719707438824,-3616.0,0.0001649,2]
[330682092,1719707438833,-601.61238066,0.0001649,2]
[330682095,1719707438847,-610.32761934,0.0001649,2]
[330682097,1719707438856,-534.55260655,0.0001649,2]
[330682099,1719707438867,-2536.17005231,0.0001649,2]
[330682256,1719707441059,-500.0,0.00016438,2]
[330682257,1719707441069,-14338.23734114,0.0001649,2]
[330682258,1719707441082,-500.0,0.00016491,2]
[330682259,1719707441091,-500.0,0.00016491,2]
[330682260,1719707441101,-500.0,0.00016491,2]
[330682261,1719707441110,-664.43,0.00016491,2]
[330682262,1719707441122,-500.0,0.00016491,2]
[330682263,1719707441133,-500.0,0.00016491,2]
[330682264,1719707441143,-500.0,0.00016491,2]
[330682265,1719707441153,-500.0,0.00016491,2]
[330682266,1719707441164,-877.46,0.00016491,2]
[330682267,1719707441174,-388.6131425,0.00016491,2]
[330682268,1719707441183,-500.0,0.00016491,2]
[330682269,1719707441193,-500.0,0.00016491,2]
[330682270,1719707441202,-811.14,0.00016491,2]
[330682271,1719707441211,-500.0,0.00016491,2]
[330682272,1719707441220,-582.77,0.00016491,2]
[330682273,1719707441230,-500.0,0.00016491,2]
[330682274,1719707441239,-500.0,0.00016491,2]
[330682275,1719707441249,-694.06,0.00016491,2]
[330682276,1719707441258,-500.0,0.00016491,2]
[330682277,1719707441267,-500.0,0.00016491,2]
[330682278,1719707441277,-500.0,0.00016491,2]
[330682279,1719707441286,-500.0,0.00016491,2]
[330682280,1719707441295,-500.0,0.00016491,2]
[330682281,1719707441304,-500.0,0.00016491,2]
[330682282,1719707441314,-1258.99,0.00016491,2]
[330682283,1719707441323,-500.0,0.00016491,2]
[330682284,1719707441333,-500.0,0.00016491,2]
[330682285,1719707441342,-500.0,0.00016491,2]
[330682286,1719707441351,-500.0,0.00016491,2]
[330682287,1719707441360,-500.0,0.00016491,2]
[330682288,1719707441370,-500.0,0.00016491,2]
[330682289,1719707441379,-1333.24,0.00016491,2]
[330682290,1719707441473,-500.0,0.00016491,2]
[330682291,1719707441501,-566.41,0.00016491,2]
[330682292,1719707441511,-500.0,0.00016491,2]
[330682293,1719707441520,-500.0,0.00016491,2]
[330682294,1719707441529,-500.0,0.00016491,2]
[330682295,1719707441539,-755.01,0.00016491,2]
[330682296,1719707441548,-500.0,0.00016491,2]
[330682297,1719707441557,-500.0,0.00016491,2]
[330682298,1719707441567,-1019.25,0.00016491,2]
[330682299,1719707441576,-500.0,0.00016491,2]
[330682300,1719707441585,-1661.53,0.00016491,2]
[330682301,1719707441594,-677.46,0.00016491,2]
[330682302,1719707441604,-500.0,0.00016491,2]
[330682303,1719707441613,-752.34,0.00016491,2]
[330682304,1719707441623,-796.96,0.00016491,2]
[330682305,1719707441632,-607.45,0.00016491,2]
[330682306,1719707441641,-500.0,0.00016491,2]
[330682307,1719707441650,-617.82,0.00016491,2]
[330682308,1719707441660,-613.96,0.00016491,2]
[330682309,1719707441669,-534.82,0.00016491,2]
[330682310,1719707441678,-500.0,0.00016491,2]
[330682311,1719707441687,-500.0,0.00016491,2]
[330682312,1719707441696,-1067.53,0.00016491,2]
[330682313,1719707441705,-500.0,0.00016491,2]
[330682314,1719707441715,-620.27,0.00016491,2]
[330682315,1719707441724,-500.0,0.00016491,2]
[330682316,1719707441734,-1024.54,0.00016491,2]
[330682317,1719707441743,-500.0,0.00016491,2]
[330682318,1719707441753,-500.0,0.00016491,2]
[330682319,1719707441763,-500.0,0.00016491,2]
[330682320,1719707441772,-500.0,0.00016491,2]
[330682321,1719707441781,-500.0,0.00016491,2]
[330682322,1719707441790,-500.0,0.00016491,2]
[330682323,1719707441800,-500.0,0.00016491,2]
[330682324,1719707441810,-500.0,0.00016491,2]
[330682325,1719707441819,-106.3757102,0.00016491,2]
[330682821,1719707645873,2318.14397824,0.00014999,2]
[330682822,1719707666789,318.18757632,0.00014999,2]
[330682827,1719707685057,155.06768222,0.00015,2]
[330682828,1719707693109,2116.75145058,0.00014999,2]
[330682829,1719707694832,319.53677074,0.00014999,2]
[330682830,1719707699449,286.35715775,0.00014999,2]
[330682831,1719707719359,208.75334757,0.00014999,2]
[330682832,1719707747272,1103.33519031,0.00015,2]
[330682837,1719707817164,9990.33197715,0.000125,2]
[330682839,1719707840784,323.66188023,0.0001,2]
[330682841,1719707901081,20804.51071191,0.00012121,2]
[330682849,1719708180875,174.55715225,0.00014692,2]
[330682861,1719708447255,972.01,0.00024,60]
[330682907,1719708632002,-283.048721,0.00015089,2]
[330682909,1719708632012,-300.0,0.00015404,2]
[330682911,1719708632021,-718.951279,0.00015405,2]
[330683042,1719708638203,-24181.048721,0.00015405,2]
[330683044,1719708638213,-969.16681197,0.00016238,2]
[330683046,1719708638223,-17315.86511178,0.00016338,2]
[330683048,1719708638233,-2000.0,0.00016338,2]
[330683050,1719708638243,-5285.14289515,0.00016392,2]
[330683052,1719708638252,-5085.72050359,0.00016395,2]
[330683054,1719708638262,-500.0,0.00016438,2]
[330683056,1719708638271,-500.0,0.00016438,2]
[330683058,1719708638280,-500.0,0.00016438,2]
[330683060,1719708638289,-756.38,0.00016438,2]
[330683062,1719708638299,-545.02406216,0.00016438,2]
[330683064,1719708638309,-498.62426849,0.00016438,2]
[330683066,1719708638318,-506.16242033,0.00016438,2]
[330683068,1719708638328,-500.0,0.00016438,2]
[330683070,1719708638338,-507.40533053,0.00016438,2]
[330683072,1719708638347,-1021.09,0.00016438,2]
[330683074,1719708638357,-500.0,0.00016438,2]
[330683076,1719708638366,-500.0,0.00016438,2]
[330683078,1719708638377,-753.71,0.00016438,2]
[330683080,1719708638386,-500.0,0.00016438,2]
[330683082,1719708638395,-614.30249063,0.00016438,2]
[330683084,1719708638405,-602.97,0.00016438,2]
[330683086,1719708638414,-507.33651066,0.00016438,2]
[330683088,1719708638423,-678.69,0.00016438,2]
[330683090,1719708638433,-500.0,0.00016438,2]
[330683092,1719708638442,-500.0,0.00016438,2]
[330683094,1719708638451,-502.89687144,0.00016438,2]
[330683096,1719708638465,-500.0,0.00016438,2]
[330683098,1719708638474,-500.0,0.00016438,2]
[330683100,1719708638484,-504.08985848,0.00016438,2]
[330683102,1719708638493,-500.0,0.00016438,2]
[330683104,1719708638503,-500.0,0.00016438,2]
[330683106,1719708638513,-1664.54,0.00016438,2]
[330683108,1719708638522,-352.01106044,0.00016438,2]
[330683110,1719708638532,-500.0,0.00016438,2]
[330683112,1719708638545,-618.94,0.00016438,2]
[330683114,1719708638555,-500.0,0.00016438,2]
[330683116,1719708638565,-798.4,0.00016438,2]
[330683118,1719708638575,-500.0,0.00016438,2]
[330683120,1719708638584,-500.0,0.00016438,2]
[330683132,1719708638693,-286.46347606,0.00016438,2]
[330683134,1719708638704,-500.0,0.00016438,2]
[330683136,1719708638714,-500.0,0.00016438,2]
[330683138,1719708638723,-500.0,0.00016438,2]
[330683140,1719708638733,-500.0,0.00016438,2]
[330683142,1719708638741,-500.0,0.00016438,2]
[330683144,1719708638751,-500.0,0.00016438,2]
[330683145,1719708638760,-500.0,0.00016438,2]
[330683147,1719708638769,-615.08,0.00016438,2]
[330683149,1719708638779,-500.0,0.00016438,2]
[330683151,1719708638788,-535.79,0.00016438,2]
[330683153,1719708638797,-500.0,0.00016438,2]
[330683155,1719708638806,-500.0,0.00016438,2]
[330683157,1719708638816,-500.0,0.00016438,2]
[330683159,1719708638825,-500.0,0.00016438,2]
[330683161,1719708638834,-1069.47,0.00016438,2]
[330683163,1719708638843,-621.4,0.00016438,2]
[330683165,1719708638852,-516.11560987,0.00016438,2]
[330683167,1719708638861,-500.0,0.00016438,2]
[330683169,1719708638870,-671.64,0.00016438,2]
[330683171,1719708638880,-504.18292755,0.00016438,2]
[330683173,1719708638889,-500.0,0.00016438,2]
[330683175,1719708638899,-500.0,0.00016438,2]
[330683177,1719708638908,-500.0,0.00016438,2]
[330683179,1719708638917,-500.0,0.00016438,2]
[330683181,1719708638926,-501.90636135,0.00016438,2]
[330683183,1719708638935,-500.0,0.00016438,2]
[330683185,1719708638945,-713.41,0.00016438,2]
[330683187,1719708638954,-500.0,0.00016438,2]
[330683189,1719708638963,-501.1586156,0.00016438,2]
[330683191,1719708638973,-500.0,0.00016438,2]
[330683193,1719708638982,-682.6,0.00016438,2]
[330683195,1719708638992,-573.8,0.00016438,2]
[330683197,1719708639002,-2429.47,0.00016438,2]
[330683199,1719708639012,-500.0,0.00016438,2]
[330683201,1719708639022,-500.0,0.00016438,2]
[330683203,1719708639031,-500.0,0.00016438,2]
[330683205,1719708639041,-500.0,0.00016438,2]
[330683207,1719708639050,-534.98,0.00016438,2]
[330683209,1719708639060,-500.0,0.00016438,2]
[330683211,1719708639071,-1048.28,0.00016438,2]
[330683213,1719708639081,-659.53,0.00016438,2]
[330683214,1719708639091,-500.0,0.00016438,2]
[330683216,1719708639101,-500.0,0.00016438,2]
[330683218,1719708639111,-500.0,0.00016438,2]
[330683220,1719708639121,-1298.38,0.00016438,2]
[330683222,1719708639133,-504.28075772,0.00016438,2]
[330683224,1719708639143,-500.0,0.00016438,2]
[330683226,1719708639153,-500.0,0.00016438,2]
[330683228,1719708639163,-500.0,0.00016438,2]
[330683230,1719708639174,-1066.98,0.00016438,2]
[330683232,1719708639184,-500.0,0.00016438,2]
[330683234,1719708639195,-151.0,0.00016438,2]
[330683236,1719708639206,-500.0,0.00016438,2]
[330683238,1719708639217,-500.0,0.00016438,2]
[330683240,1719708639227,-500.0,0.00016438,2]
[330683242,1719708639238,-1225.07,0.00016438,2]
[330683244,1719708639248,-546.48,0.00016438,2]
[330683246,1719708639258,-500.0,0.00016438,2]
[330683248,1719708639268,-500.0,0.00016438,2]
[330683250,1719708639279,-500.0,0.00016438,2]
[330683252,1719708639289,-500.0,0.00016438,2]
[330683254,1719708639300,-505.30489645,0.00016438,2]
[330683256,1719708639310,-500.0,0.00016438,2]
[330683258,1719708639320,-500.0,0.00016438,2]
[330683260,1719708639331,-500.0,0.00016438,2]
[330683262,1719708639342,-536.30899488,0.00016438,2]
[330683264,1719708639352,-599.79,0.00016438,2]
[330683266,1719708639362,-512.8583965,0.00016438,2]
[330683268,1719708639372,-500.0,0.00016438,2]
[330683270,1719708639383,-500.0,0.00016438,2]
[330683272,1719708639392,-2152.41,0.00016438,2]
[330683273,1719708639402,-500.0,0.00016438,2]
[330683275,1719708639413,-584.68,0.00016438,2]
[330683277,1719708639424,-1381.18,0.00016438,2]
[330683279,1719708639434,-726.33,0.00016438,2]
[330683282,1719708639444,-1463.57,0.00016438,2]
[330683283,1719708639455,-1074.38,0.00016438,2]
[330683285,1719708639470,-500.0,0.00016438,2]
[330683288,1719708639480,-500.0,0.00016438,2]
[330683289,1719708639491,-778.02,0.00016438,2]